[Event "AUT Bundesliga 2024-25"]
[Site "Austria"]
[Date "2025.04.04"]
[Round "8.35"]
[White "Livaic, Leon"]
[Black "Lovrinovic, Christian"]
[Result "1-0"]
[Annotator "RC"]
[ECO "E71"]
[WhiteElo "2536"]
[BlackElo "2062"]
[PlyCount "97"]
[EventDate "2024.08.28"]
[EventType "team-tourn"]
[EventCountry "AUT"]
[SourceTitle "playchess.com"]
[Source "ChessBase"]
[SourceQuality "1"]
[TimeControl "40/5400+30:1800+30"]

1. d4 {[%emt 0:00:03]} Nf6 {[%emt 0:00:04]} 2. c4 {[%emt 0:00:07]} g6 {[%emt 0:00:04]} 3. Nc3 {[%emt 0:00:06]} Bg7 {[%emt 0:00:05]} 4. e4 {[%emt 0:00:06]} d6 {[%emt 0:00:03]} 5. h3 {[%emt 0:00:26]} O-O {[%emt 0:00:40]} 6. Be3 {[%emt 0:00:05]} e5 {[%emt 0:00:29]} 7. d5 {[%emt 0:00:06]} Na6 {[%emt 0:00:11]} 8. g4 {[%emt 0:00:23]} Nc5 {[%emt 0:00:21]} 9. f3 {[%emt 0:00:04]} a5 {[%emt 0:04:27]} 10. Qd2 {[%emt 0:00:18]} a4 {[%emt 0:16:53]} 11. Nge2 {[%emt 0:01:35]} Ne8 {[%emt 0:07:03]} 12. h4 {[%emt 0:01:21]} f5 {[%emt 0:00:06]} 13. gxf5 {[%emt 0:00:36]} gxf5 {[%emt 0:00:01]} 14. O-O-O {[%emt 0:03:08]} a3 {[%emt 0:01:43]} 15. b3 {[%emt 0:01:20]} f4 {[%emt 0:00:16]} 16. Bf2 {[%emt 0:00:24]} Kh8 {[%emt 0:17:56]} 17. Kb1 {[%emt 0:02:49]} Bd7 {[%emt 0:03:06]} 18. Bh3 {[%emt 0:01:27]} Nf6 {[%emt 0:01:34]} 19. h5 {[%emt 0:08:47]} Ng8 {[%emt 0:09:28]} 20. Bxc5 {[%emt 0:15:03]} dxc5 {[%emt 0:00:41]} 21. Bxd7 {[%emt 0:03:49]} Qxd7 {[%emt 0:00:08]} 22. Na4 {[%emt 0:01:39]} b6 {[%emt 0:18:54]} 23. Nec3 {[%emt 0:00:49]} Rf6 {[%emt 0:00:56]} 24. Nb5 {[%emt 0:01:21]} Bf8 {[%emt 0:00:10]} 25. Rhg1 {[%emt 0:03:57]} Rh6 {[%emt 0:03:02]} 26. Qg2 {[%emt 0:08:53]} Bd6 {[%emt 0:04:36]} 27. Nxd6 {[%emt 0:05:48]} Rxd6 {[%emt 0:00:16]} 28. Qg5 {[%emt 0:00:31]} Qe7 {[%emt 0:02:10]} 29. Nc3 {[%emt 0:00:54]} Rh6 {[%emt 0:02:20]} 30. Nb5 {[%emt 0:00:46]} Rd8 {[%emt 0:03:49]} 31. Nxa3 {[%emt 0:03:21]} Qxg5 {[%emt 0:00:42]} 32. Rxg5 {[%emt 0:00:04]} Re8 {[%emt 0:00:02]} 33. Nb5 {[%emt 0:00:13]} Re7 {[%emt 0:00:29]} 34. Rdg1 {[%emt 0:03:25]} Nf6 {[%emt 0:00:04]} 35. Rf5 {[%emt 0:00:09]} Rg7 {[%emt 0:02:57]} 36. Rxg7 {[%emt 0:00:05]} Kxg7 {[%emt 0:00:01]} 37. Rxe5 {[%emt 0:00:39]} Nxh5 {[%emt 0:00:50]} 38. Re7+ {[%emt 0:01:04]} Kf8 {[%emt 0:01:00]} 39. Rxc7 {[%emt 0:00:05]} Ng7 {[%emt 0:00:32]} 40. e5 {[%emt 0:00:38]} Rh3 {[%emt 0:00:17]} 41. d6 {[%emt 0:31:23]} Rxf3 {[%emt 0:30:26]} 42. Rxg7 {[%emt 0:02:37]} Rf1+ {[%emt 0:00:00]} 43. Kc2 {[%emt 0:00:00]} f3 {[%emt 0:00:00]} 44. d7 {[%emt 0:00:00]} f2 {[%emt 0:00:00]} 45. d8=Q+ {[%emt 0:00:00]} Kxg7 {[%emt 0:00:00]} 46. Qf6+ {[%emt 0:00:00]} Kg8 {[%emt 0:00:00]} 47. Nd6 {[%emt 0:00:00]} Ra1 {[%emt 0:00:00]} 48. Qf7+ {[%emt 0:00:00]} Kh8 {[%emt 0:00:00]} 49. Qf8# {[%emt 0:00:00]} 1-0

[Event "AUT Bundesliga 2024-25"]
[Site "Austria"]
[Date "2025.04.04"]
[Round "8.36"]
[White "Karelina, Polina"]
[Black "Saric, Ante"]
[Result "0-1"]
[Annotator "RC"]
[ECO "B23"]
[WhiteElo "1903"]
[BlackElo "2490"]
[PlyCount "66"]
[EventDate "2024.08.28"]
[EventType "team-tourn"]
[EventCountry "AUT"]
[SourceTitle "playchess.com"]
[Source "ChessBase"]
[SourceQuality "1"]
[TimeControl "40/5400+30:1800+30"]

1. e4 {[%emt 0:00:04]} c5 {[%emt 0:00:05]} 2. Nc3 {[%emt 0:00:41]} d6 {[%emt 0:00:13]} 3. f4 {[%emt 0:00:38]} g6 {[%emt 0:00:08]} 4. Nf3 {[%emt 0:01:09]} Bg7 {[%emt 0:00:06]} 5. Bc4 {[%emt 0:03:44]} Nc6 {[%emt 0:00:24]} 6. a3 {[%emt 0:00:11]} e6 {[%emt 0:00:32]} 7. d3 {[%emt 0:03:32]} Nge7 {[%emt 0:00:08]} 8. O-O {[%emt 0:04:13]} O-O {[%emt 0:00:18]} 9. Kh1 {[%emt 0:03:12]} b6 {[%emt 0:01:52]} 10. Qe1 {[%emt 0:11:14]} Bb7 {[%emt 0:02:55]} 11. h4 {[%emt 0:07:16]} Nd4 {[%emt 0:01:18]} 12. Bb3 {[%emt 0:04:58]} Nxb3 {[%emt 0:04:50]} 13. cxb3 {[%emt 0:00:21]} Ba6 {[%emt 0:00:23]} 14. Qd1 {[%emt 0:08:15]} d5 {[%emt 0:05:01]} 15. Re1 {[%emt 0:04:39]} dxe4 {[%emt 0:03:59]} 16. dxe4 {[%emt 0:00:27]} Nc6 {[%emt 0:00:05]} 17. Qxd8 {[%emt 0:02:32]} Rfxd8 {[%emt 0:00:26]} 18. e5 {[%emt 0:01:02]} Na5 {[%emt 0:01:31]} 19. Nd2 {[%emt 0:03:23]} Bb7 {[%emt 0:01:27]} 20. b4 {[%emt 0:01:37]} cxb4 {[%emt 0:01:07]} 21. axb4 {[%emt 0:00:06]} Nc6 {[%emt 0:00:06]} 22. b5 {[%emt 0:02:15]} Nb4 {[%emt 0:00:22]} 23. Re2 {[%emt 0:02:46]} a6 {[%emt 0:00:36]} 24. Nde4 {[%emt 0:02:26]} axb5 {[%emt 0:11:39]} 25. Rxa8 {[%emt 0:00:15]} Rxa8 {[%emt 0:00:06]} 26. Nd6 {[%emt 0:03:14]} Bc6 {[%emt 0:10:05]} 27. Be3 {[%emt 0:01:00]} f6 {[%emt 0:01:44]} 28. Bxb6 {[%emt 0:03:32]} fxe5 {[%emt 0:02:46]} 29. fxe5 {[%emt 0:00:21]} Nd3 {[%emt 0:00:08]} 30. Bd4 {[%emt 0:01:46]} b4 {[%emt 0:12:45]} 31. Nce4 {[%emt 0:02:03]} Nxe5 {[%emt 0:00:53]} 32. Nc5 {[%emt 0:00:48]} Nf3 {[%emt 0:02:37]} 33. Bxg7 {[%emt 0:00:46]} Ra1+ {[%emt 0:00:27]} 0-1

[Event "AUT Bundesliga 2024-25"]
[Site "Austria"]
[Date "2025.04.04"]
[Round "9.1"]
[White "Hodysh, Yuriy"]
[Black "Parligras, Mircea-Emilian"]
[Result "1/2-1/2"]
[Annotator "ChessBase"]
[ECO "E56"]
[WhiteElo "2401"]
[BlackElo "2507"]
[PlyCount "62"]
[EventDate "2024.08.28"]
[EventType "team-tourn"]
[EventCountry "AUT"]
[SourceTitle "playchess.com"]
[Source "ChessBase"]
[SourceQuality "1"]
[TimeControl "40/5400+30:1800+30"]

1. d4 {[%emt 0:00:05]} Nf6 {[%emt 0:00:10]} 2. c4 {[%emt 0:00:04]} e6 {[%emt 0:00:09]} 3. Nf3 {[%emt 0:00:04]} d5 {[%emt 0:00:15]} 4. Nc3 {[%emt 0:00:05]} Bb4 {[%emt 0:00:19]} 5. e3 {[%emt 0:00:34]} O-O {[%emt 0:00:18]} 6. Bd3 {[%emt 0:00:02]} dxc4 {[%emt 0:00:40]} 7. Bxc4 {[%emt 0:00:05]} c5 {[%emt 0:00:25]} 8. O-O {[%emt 0:00:05]} Nc6 {[%emt 0:07:58]} 9. a3 {[%emt 0:04:31]} Ba5 {[%emt 0:00:57]} 10. Qd3 {[%emt 0:08:50]} h6 {[%emt 0:06:57]} 11. Ne4 {[%emt 0:10:23]} cxd4 {[%emt 0:02:20]} 12. exd4 {[%emt 0:00:04]} Bb6 {[%emt 0:11:10]} 13. Rd1 {[%emt 0:09:48]} e5 {[%emt 0:11:44]} 14. d5 {[%emt 0:17:40]} Nd4 {[%emt 0:07:30]} 15. Nxd4 {[%emt 0:06:33]} Bxd4 {[%emt 0:06:45]} 16. Nxf6+ {[%emt 0:01:28]} Qxf6 {[%emt 0:00:06]} 17. Be3 {[%emt 0:00:19]} Bxb2 {[%emt 0:08:47]} 18. Ra2 {[%emt 0:00:15]} Bf5 {[%emt 0:00:55]} 19. Qd2 {[%emt 0:01:25]} Bd4 {[%emt 0:00:05]} 20. Bxd4 {[%emt 0:00:08]} exd4 {[%emt 0:00:07]} 21. Qxd4 {[%emt 0:00:10]} Qxd4 {[%emt 0:01:20]} 22. Rxd4 {[%emt 0:00:05]} Rac8 {[%emt 0:00:28]} 23. f3 {[%emt 0:04:11]} Rfd8 {[%emt 0:03:03]} 24. Rb2 {[%emt 0:17:00]} b6 {[%emt 0:00:38]} 25. g4 {[%emt 0:03:08]} Bd7 {[%emt 0:00:10]} 26. d6 {[%emt 0:00:17]} b5 {[%emt 0:12:05]} 27. Bxb5 {[%emt 0:00:30]} Rb8 {[%emt 0:00:18]} 28. Rdb4 {[%emt 0:00:04]} Rxb5 {[%emt 0:09:52]} 29. Rxb5 {[%emt 0:00:18]} Bxb5 {[%emt 0:00:04]} 30. Rxb5 {[%emt 0:00:04]} Rxd6 {[%emt 0:00:05]} 31. Ra5 {[%emt 0:00:03]} a6 {[%emt 0:00:13]} 1/2-1/2

[Event "AUT Bundesliga 2024-25"]
[Site "Austria"]
[Date "2025.04.04"]
[Round "9.2"]
[White "Kozul, Zdenko"]
[Black "Vitouch, Anatol"]
[Result "1-0"]
[Annotator "RC"]
[ECO "D06"]
[WhiteElo "2507"]
[BlackElo "2271"]
[PlyCount "55"]
[EventDate "2024.08.28"]
[EventType "team-tourn"]
[EventCountry "AUT"]
[SourceTitle "playchess.com"]
[Source "ChessBase"]
[SourceQuality "1"]
[TimeControl "40/5400+30:1800+30"]

1. d4 {[%emt 0:00:05]} d5 {[%emt 0:00:07]} 2. c4 {[%emt 0:00:11]} c5 {[%emt 0:00:06]} 3. cxd5 {[%emt 0:01:03]} Qxd5 {[%emt 0:00:12]} 4. Nf3 {[%emt 0:01:00]} cxd4 {[%emt 0:00:12]} 5. Nc3 {[%emt 0:00:27]} Qa5 {[%emt 0:00:09]} 6. Nxd4 {[%emt 0:00:25]} Nf6 {[%emt 0:00:12]} 7. a3 {[%emt 0:02:18]} e5 {[%emt 0:01:57]} 8. Nb3 {[%emt 0:00:10]} Qc7 {[%emt 0:00:18]} 9. Bg5 {[%emt 0:00:16]} Be6 {[%emt 0:04:22]} 10. Bxf6 {[%emt 0:01:08]} gxf6 {[%emt 0:00:07]} 11. Nd5 {[%emt 0:09:12]} Bxd5 {[%emt 0:07:53]} 12. Qxd5 {[%emt 0:00:07]} Nc6 {[%emt 0:00:51]} 13. e3 {[%emt 0:07:53]} Rd8 {[%emt 0:00:54]} 14. Qe4 {[%emt 0:16:41]} Qb6 {[%emt 0:17:52]} 15. Bc4 {[%emt 0:01:17]} Na5 {[%emt 0:00:36]} 16. Nxa5 {[%emt 0:00:48]} Qxa5+ {[%emt 0:00:07]} 17. Ke2 {[%emt 0:00:26]} Rd2+ {[%emt 0:03:05]} 18. Kf3 {[%emt 0:06:34]} Be7 {[%emt 0:19:04]} 19. g3 {[%emt 0:05:58]} Qb6 {[%emt 0:18:53]} 20. Rhd1 {[%emt 0:05:43]} Qxb2 {[%emt 0:06:41]} 21. Rxd2 {[%emt 0:06:21]} Qxa1 {[%emt 0:00:20]} 22. Kg2 {[%emt 0:14:48]} Qxa3 {[%emt 0:02:02]} 23. Qxb7 {[%emt 0:02:21]} O-O {[%emt 0:02:27]} 24. Rd7 {[%emt 0:00:07]} Qb4 {[%emt 0:04:07]} 25. Qd5 {[%emt 0:08:27]} Qc5 {[%emt 0:01:05]} 26. Qe4 {[%emt 0:01:07]} Rd8 {[%emt 0:05:20]} 27. Bd3 {[%emt 0:01:02]} f5 {[%emt 0:02:09]} 28. Qxf5 {[%emt 0:00:16]} 1-0

[Event "AUT Bundesliga 2024-25"]
[Site "Austria"]
[Date "2025.04.04"]
[Round "9.15"]
[White "Blohberger, Felix"]
[Black "Vogel, Roven"]
[Result "1/2-1/2"]
[Annotator "RC"]
[ECO "E04"]
[WhiteElo "2511"]
[BlackElo "2557"]
[PlyCount "62"]
[EventDate "2024.08.28"]
[EventType "team-tourn"]
[EventCountry "AUT"]
[SourceTitle "playchess.com"]
[Source "ChessBase"]
[SourceQuality "1"]
[TimeControl "40/5400+30:1800+30"]

1. d4 {[%emt 0:00:16]} Nf6 {[%emt 0:00:43]} 2. Nf3 {[%emt 0:00:44]} d5 {[%emt 0:00:09]} 3. c4 {[%emt 0:03:58]} e6 {[%emt 0:00:38]} 4. g3 {[%emt 0:02:02]} dxc4 {[%emt 0:00:11]} 5. Bg2 {[%emt 0:00:06]} a6 {[%emt 0:00:12]} 6. O-O {[%emt 0:00:15]} Nc6 {[%emt 0:00:07]} 7. Qd2 {[%emt 0:00:52]} Bd7 {[%emt 0:01:12]} 8. Ne5 {[%emt 0:18:01]} Nxe5 {[%emt 0:00:50]} 9. dxe5 {[%emt 0:00:06]} Nd5 {[%emt 0:00:08]} 10. Rd1 {[%emt 0:04:53]} Ba4 {[%emt 0:05:25]} 11. Rf1 {[%emt 0:09:13]} Bc5 {[%emt 0:08:19]} 12. Nc3 {[%emt 0:01:46]} Bc6 {[%emt 0:01:27]} 13. Rd1 {[%emt 0:07:32]} Nxc3 {[%emt 0:04:40]} 14. Bxc6+ {[%emt 0:00:31]} bxc6 {[%emt 0:00:07]} 15. Qxd8+ {[%emt 0:03:14]} Rxd8 {[%emt 0:00:02]} 16. Rxd8+ {[%emt 0:00:09]} Kxd8 {[%emt 0:00:10]} 17. bxc3 {[%emt 0:00:02]} Kc8 {[%emt 0:01:15]} 18. Bf4 {[%emt 0:05:18]} Rd8 {[%emt 0:00:46]} 19. a4 {[%emt 0:00:47]} Rd5 {[%emt 0:03:09]} 20. h4 {[%emt 0:01:06]} Bb6 {[%emt 0:22:34]} 21. Kg2 {[%emt 0:05:00]} Ba5 {[%emt 0:00:05]} 22. Rc1 {[%emt 0:00:28]} Kd7 {[%emt 0:01:40]} 23. Kf3 {[%emt 0:00:51]} c5 {[%emt 0:00:18]} 24. h5 {[%emt 0:07:04]} h6 {[%emt 0:03:20]} 25. g4 {[%emt 0:02:26]} Kc6 {[%emt 0:00:07]} 26. Ke4 {[%emt 0:00:49]} Rd8 {[%emt 0:00:08]} 27. Rc2 {[%emt 0:03:27]} Rd1 {[%emt 0:07:44]} 28. Bc1 {[%emt 0:00:25]} Rd8 {[%emt 0:00:03]} 29. Be3 {[%emt 0:00:16]} Rd1 {[%emt 0:00:04]} 30. Bc1 {[%emt 0:00:04]} Rd8 {[%emt 0:00:02]} 31. Be3 {[%emt 0:00:04]} Rd1 {[%emt 0:00:03]} 1/2-1/2

[Event "AUT Bundesliga 2024-25"]
[Site "Austria"]
[Date "2025.04.04"]
[Round "9.21"]
[White "Janzelj, Tim"]
[Black "Erdos, Viktor"]
[Result "1/2-1/2"]
[Annotator "RC"]
[ECO "A03"]
[WhiteElo "2404"]
[BlackElo "2542"]
[PlyCount "62"]
[EventDate "2024.08.28"]
[EventType "team-tourn"]
[EventCountry "AUT"]
[SourceTitle "playchess.com"]
[Source "ChessBase"]
[SourceQuality "1"]
[TimeControl "40/5400+30:1800+30"]

1. f4 {[%emt 0:00:04]} d5 {[%emt 0:04:22]} 2. Nf3 {[%emt 0:00:13]} g6 {[%emt 0:00:10]} 3. d3 {[%emt 0:01:02]} Nf6 {[%emt 0:12:52]} 4. Nbd2 {[%emt 0:00:30]} Nc6 {[%emt 0:22:30]} 5. g3 {[%emt 0:07:06]} Bg7 {[%emt 0:03:11]} 6. Bg2 {[%emt 0:00:43]} O-O {[%emt 0:00:07]} 7. O-O {[%emt 0:01:52]} e5 {[%emt 0:05:22]} 8. fxe5 {[%emt 0:13:49]} Ng4 {[%emt 0:00:16]} 9. Nb3 {[%emt 0:00:05]} Ngxe5 {[%emt 0:01:26]} 10. c3 {[%emt 0:09:03]} Nxf3+ {[%emt 0:09:18]} 11. exf3 {[%emt 0:00:43]} a5 {[%emt 0:01:29]} 12. d4 {[%emt 0:02:55]} b6 {[%emt 0:12:13]} 13. a4 {[%emt 0:02:24]} Re8 {[%emt 0:00:18]} 14. Bf4 {[%emt 0:02:14]} Ba6 {[%emt 0:02:46]} 15. Re1 {[%emt 0:00:08]} Rxe1+ {[%emt 0:03:03]} 16. Qxe1 {[%emt 0:00:02]} Qd7 {[%emt 0:00:04]} 17. Bf1 {[%emt 0:06:55]} Re8 {[%emt 0:00:17]} 18. Qf2 {[%emt 0:00:05]} Bxf1 {[%emt 0:01:14]} 19. Qxf1 {[%emt 0:00:58]} Nd8 {[%emt 0:08:41]} 20. Kf2 {[%emt 0:09:08]} Ne6 {[%emt 0:01:24]} 21. Be3 {[%emt 0:01:36]} Bf8 {[%emt 0:01:09]} 22. Qb5 {[%emt 0:01:26]} Qxb5 {[%emt 0:00:15]} 23. axb5 {[%emt 0:00:01]} Bd6 {[%emt 0:03:19]} 24. Nc1 {[%emt 0:00:58]} Rc8 {[%emt 0:03:49]} 25. Ke2 {[%emt 0:05:01]} Kf8 {[%emt 0:02:37]} 26. b3 {[%emt 0:00:52]} c6 {[%emt 0:00:27]} 27. bxc6 {[%emt 0:00:09]} Rxc6 {[%emt 0:00:01]} 28. Kd3 {[%emt 0:00:15]} Rc8 {[%emt 0:00:39]} 29. Ne2 {[%emt 0:01:41]} Nc7 {[%emt 0:00:42]} 30. h4 {[%emt 0:11:50]} Ke7 {[%emt 0:00:10]} 31. g4 {[%emt 0:00:44]} Kd7 {[%emt 0:00:10]} 1/2-1/2

[Event "AUT Bundesliga 2024-25"]
[Site "Austria"]
[Date "2025.04.04"]
[Round "9.22"]
[White "Sankalp Gupta"]
[Black "Sebenik, Matej"]
[Result "1-0"]
[Annotator "RC"]
[ECO "C42"]
[WhiteElo "2548"]
[BlackElo "2491"]
[PlyCount "73"]
[EventDate "2024.08.28"]
[EventType "team-tourn"]
[EventCountry "AUT"]
[SourceTitle "playchess.com"]
[Source "ChessBase"]
[SourceQuality "1"]
[TimeControl "40/5400+30:1800+30"]

1. e4 {[%emt 0:00:21]} e5 {[%emt 0:00:28]} 2. Nf3 {[%emt 0:00:06]} Nf6 {[%emt 0:00:13]} 3. Nxe5 {[%emt 0:02:38]} d6 {[%emt 0:00:10]} 4. Nf3 {[%emt 0:00:05]} Nxe4 {[%emt 0:00:06]} 5. Nc3 {[%emt 1:29:50]} Nxc3 {[%emt 1:32:03]} 6. dxc3 {[%emt 0:00:00]} Be7 {[%emt 0:00:00]} 7. Be3 {[%emt 0:00:00]} Nd7 {[%emt 0:00:00]} 8. Qd2 {[%emt 0:00:00]} Ne5 {[%emt 0:00:00]} 9. Be2 {[%emt 0:00:00]} O-O {[%emt 0:00:00]} 10. Bf4 {[%emt 0:00:00]} Nxf3+ {[%emt 0:00:00]} 11. Bxf3 {[%emt 0:00:00]} Be6 {[%emt 0:00:00]} 12. O-O-O {[%emt 0:00:00]} Rb8 {[%emt 0:00:00]} 13. Kb1 {[%emt 0:00:00]} Qd7 {[%emt 0:00:00]} 14. h4 {[%emt 0:00:00]} b5 {[%emt 0:00:00]} 15. h5 {[%emt 0:00:00]} h6 {[%emt 0:00:00]} 16. g4 {[%emt 0:00:00]} b4 {[%emt 0:00:00]} 17. c4 {[%emt 0:00:00]} Bxc4 {[%emt 0:00:00]} 18. b3 {[%emt 0:00:00]} Be6 {[%emt 0:00:00]} 19. g5 {[%emt 0:00:00]} Bxg5 {[%emt 0:00:00]} 20. Bxg5 {[%emt 0:00:00]} hxg5 {[%emt 0:00:00]} 21. h6 {[%emt 0:00:00]} Rb5 {[%emt 0:00:00]} 22. hxg7 {[%emt 0:00:00]} Kxg7 {[%emt 0:00:00]} 23. Be4 {[%emt 0:00:00]} Rg8 {[%emt 0:00:00]} 24. f4 {[%emt 0:00:00]} Kf8 {[%emt 0:00:00]} 25. Bd3 {[%emt 0:00:00]} Rc5 {[%emt 0:01:09]} 26. Qxb4 {[%emt 0:00:18]} Bf5 {[%emt 0:03:23]} 27. fxg5 {[%emt 0:00:40]} a5 {[%emt 0:02:15]} 28. Qb7 {[%emt 0:04:31]} Kg7 {[%emt 0:01:07]} 29. Qg2 {[%emt 0:00:33]} Re5 {[%emt 0:03:27]} 30. Qh2 {[%emt 0:04:41]} Qe6 {[%emt 0:00:02]} 31. g6 {[%emt 0:01:23]} fxg6 {[%emt 0:00:48]} 32. Bxf5 {[%emt 0:00:48]} Rxf5 {[%emt 0:00:33]} 33. Rde1 {[%emt 0:00:19]} Qf7 {[%emt 0:00:42]} 34. Qh6+ {[%emt 0:00:37]} Kf6 {[%emt 0:00:03]} 35. Rhf1 {[%emt 0:00:34]} Qd5 {[%emt 0:00:56]} 36. Qh4+ {[%emt 0:00:18]} g5 {[%emt 0:00:32]} 37. Qh6+ {[%emt 0:00:35]} 1-0

[Event "AUT Bundesliga 2024-25"]
[Site "Austria"]
[Date "2025.04.04"]
[Round "9.23"]
[White "Schreiner, Peter"]
[Black "Perunovic, Milos"]
[Result "1/2-1/2"]
[Annotator "RC"]
[ECO "A30"]
[WhiteElo "2425"]
[BlackElo "2501"]
[PlyCount "77"]
[EventDate "2024.08.28"]
[EventType "team-tourn"]
[EventCountry "AUT"]
[SourceTitle "playchess.com"]
[Source "ChessBase"]
[SourceQuality "1"]
[TimeControl "40/5400+30:1800+30"]

1. Nf3 {[%emt 0:00:06]} Nf6 {[%emt 0:01:16]} 2. g3 {[%emt 0:02:16]} c5 {[%emt 0:03:03]} 3. Bg2 {[%emt 0:01:51]} Nc6 {[%emt 0:00:36]} 4. c4 {[%emt 0:02:59]} d5 {[%emt 0:03:51]} 5. cxd5 {[%emt 0:02:03]} Nxd5 {[%emt 0:00:33]} 6. d4 {[%emt 0:00:18]} cxd4 {[%emt 0:04:10]} 7. Nxd4 {[%emt 0:00:08]} Ndb4 {[%emt 0:00:16]} 8. Nxc6 {[%emt 0:00:22]} Qxd1+ {[%emt 0:00:09]} 9. Kxd1 {[%emt 0:00:05]} Nxc6 {[%emt 0:00:08]} 10. Nc3 {[%emt 0:04:00]} Bd7 {[%emt 0:12:43]} 11. Be3 {[%emt 0:02:04]} Rc8 {[%emt 0:15:32]} 12. Ke1 {[%emt 0:08:03]} g6 {[%emt 0:04:44]} 13. f4 {[%emt 0:03:39]} Bg7 {[%emt 0:00:37]} 14. Rc1 {[%emt 0:01:21]} O-O {[%emt 0:16:20]} 15. Kf2 {[%emt 0:03:00]} e5 {[%emt 0:05:52]} 16. Rhd1 {[%emt 0:07:50]} exf4 {[%emt 0:01:19]} 17. gxf4 {[%emt 0:00:48]} Be6 {[%emt 0:00:48]} 18. Nd5 {[%emt 0:16:48]} Rfe8 {[%emt 0:05:22]} 19. b4 {[%emt 0:03:42]} a6 {[%emt 0:08:12]} 20. a4 {[%emt 0:03:32]} Bb2 {[%emt 0:07:45]} 21. Rc2 {[%emt 0:17:43]} Bxd5 {[%emt 0:00:25]} 22. Bf3 {[%emt 0:18:52]} Be4 23. Bxe4 {[%emt 0:00:00]} Bd4 {[%emt 0:08:19]} 24. Bd5 Bf6 {[%emt 0:00:00]} 25. Rdc1 {[%emt 0:00:00]} Rb8 {[%emt 0:00:00]} 26. Bxc6 {[%emt 0:00:00]} bxc6 {[%emt 0:00:00]} 27. Rxc6 {[%emt 0:00:00]} Bh4+ {[%emt 0:00:00]} 28. Kf3 {[%emt 0:00:00]} Rxb4 {[%emt 0:00:00]} 29. Rc8 {[%emt 0:01:46]} Bd8 {[%emt 0:00:20]} 30. Rd1 {[%emt 0:01:30]} Rbe4 {[%emt 0:00:49]} 31. Bf2 {[%emt 0:00:34]} Ba5 {[%emt 0:01:15]} 32. Rxe8+ {[%emt 0:00:14]} Rxe8 {[%emt 0:00:01]} 33. Rd6 {[%emt 0:00:52]} Ra8 {[%emt 0:00:47]} 34. Bc5 {[%emt 0:00:31]} Be1 {[%emt 0:01:11]} 35. Bb6 {[%emt 0:00:30]} Bb4 {[%emt 0:00:40]} 36. Rd4 {[%emt 0:00:24]} a5 {[%emt 0:00:06]} 37. Rd8+ {[%emt 0:00:31]} Rxd8 {[%emt 0:00:01]} 38. Bxd8 {[%emt 0:00:01]} f5 {[%emt 0:00:21]} 39. e4 {[%emt 0:00:26]} 1/2-1/2

[Event "AUT Bundesliga 2024-25"]
[Site "Austria"]
[Date "2025.04.04"]
[Round "9.24"]
[White "Ivanisevic, Ivan"]
[Black "Diermair, Andreas"]
[Result "1/2-1/2"]
[Annotator "RC"]
[ECO "D38"]
[WhiteElo "2527"]
[BlackElo "2445"]
[PlyCount "62"]
[EventDate "2024.08.28"]
[EventType "team-tourn"]
[EventCountry "AUT"]
[SourceTitle "playchess.com"]
[Source "ChessBase"]
[SourceQuality "1"]
[TimeControl "40/5400+30:1800+30"]

1. d4 {[%emt 0:00:02]} e6 {[%emt 0:00:08]} 2. c4 {[%emt 0:00:41]} Nf6 {[%emt 0:00:04]} 3. Nc3 {[%emt 0:00:17]} Bb4 {[%emt 0:00:12]} 4. Nf3 {[%emt 0:00:29]} d5 {[%emt 0:01:37]} 5. Qc2 {[%emt 0:00:18]} dxc4 {[%emt 0:02:20]} 6. a3 {[%emt 0:00:10]} Bxc3+ {[%emt 0:00:11]} 7. bxc3 {[%emt 0:00:06]} c5 {[%emt 0:00:55]} 8. e4 {[%emt 0:00:06]} Nc6 {[%emt 0:03:37]} 9. Bxc4 {[%emt 0:01:21]} cxd4 {[%emt 0:02:45]} 10. cxd4 {[%emt 0:00:35]} Nxd4 {[%emt 0:01:39]} 11. Qb2 {[%emt 0:00:07]} e5 {[%emt 0:05:40]} 12. Be3 {[%emt 0:02:11]} O-O {[%emt 0:03:53]} 13. Nxd4 {[%emt 0:16:34]} exd4 {[%emt 0:01:19]} 14. Bxd4 {[%emt 0:00:05]} Nxe4 {[%emt 0:05:41]} 15. O-O {[%emt 0:02:46]} Nd6 {[%emt 0:04:50]} 16. Bb3 {[%emt 0:05:23]} Nf5 {[%emt 0:03:45]} 17. Bc3 {[%emt 0:09:56]} Qg5 {[%emt 0:02:42]} 18. Rae1 {[%emt 0:06:07]} Bd7 {[%emt 0:01:56]} 19. Re5 {[%emt 0:07:23]} Rfe8 {[%emt 0:02:31]} 20. Bd5 {[%emt 0:12:31]} Bc6 {[%emt 0:07:57]} 21. Bxc6 {[%emt 0:00:28]} bxc6 {[%emt 0:00:07]} 22. Qb7 {[%emt 0:00:14]} Qg6 {[%emt 0:05:41]} 23. Rfe1 {[%emt 0:02:03]} f6 {[%emt 0:00:59]} 24. Rxe8+ {[%emt 0:01:52]} Rxe8 {[%emt 0:00:07]} 25. Qxc6 {[%emt 0:00:21]} Rxe1+ {[%emt 0:02:20]} 26. Bxe1 {[%emt 0:00:05]} h5 {[%emt 0:00:36]} 27. Qe4 {[%emt 0:07:56]} Qg4 {[%emt 0:06:14]} 28. Qe8+ {[%emt 0:04:00]} Kh7 {[%emt 0:00:05]} 29. h3 {[%emt 0:11:39]} Qd1 {[%emt 0:01:00]} 30. Qe4 {[%emt 0:00:37]} g6 {[%emt 0:01:46]} 31. Kf1 {[%emt 0:00:40]} Nd4 {[%emt 0:03:40]} 1/2-1/2